[Event "Early-Titled-Tuesday-Blitz-January-16-2024"]
[Site "Chess.com"]
[Date "2024.01.16"]
[Round "5"]
[White "Yaacovn"]
[Black "KNVB"]
[Result "1-0"]
[WhiteElo "2890"]
[BlackElo "2681"]
[TimeControl "180+1"]
[EndTime "8:56:49 PST"]
[Termination "Yaacovn won on time"]

1. d4 {[%clk 0:02:55.9]} 1... Nf6 {[%clk 0:02:54.2]} 2. e3 {[%clk 0:02:54.6]}
2... e6 {[%clk 0:02:40.9]} 3. Bd3 {[%clk 0:02:53.5]} 3... b6 {[%clk 0:02:32.9]}
4. f4 {[%clk 0:02:53.3]} 4... Bb7 {[%clk 0:02:32.4]} 5. Nf3 {[%clk 0:02:53.3]}
5... c5 {[%clk 0:02:28.9]} 6. O-O {[%clk 0:02:51.5]} 6... Be7 {[%clk 0:02:04]}
7. c3 {[%clk 0:02:51.2]} 7... cxd4 {[%clk 0:01:54.5]} 8. exd4 {[%clk 0:02:50.9]}
8... Ba6 {[%clk 0:01:54.1]} 9. Bxa6 {[%clk 0:02:48.6]} 9... Nxa6 {[%clk
0:01:55]} 10. f5 {[%clk 0:02:48.6]} 10... exf5 {[%clk 0:01:29.7]} 11. Qd3 {[%clk
0:02:47.7]} 11... Qc8 {[%clk 0:01:23.7]} 12. Qxf5 {[%clk 0:02:38.6]} 12... O-O
{[%clk 0:01:20.9]} 13. Bg5 {[%clk 0:02:34.3]} 13... d6 {[%clk 0:01:18.3]} 14.
Qd3 {[%clk 0:02:18.5]} 14... Nc7 {[%clk 0:01:12.2]} 15. Nbd2 {[%clk 0:02:15.8]}
15... Re8 {[%clk 0:00:51.3]} 16. Rae1 {[%clk 0:02:13.6]} 16... Qd7 {[%clk
0:00:51.1]} 17. Nh4 {[%clk 0:02:02.8]} 17... h6 {[%clk 0:00:36]} 18. Rxe7 {[%clk
0:01:57.5]} 18... Qxe7 {[%clk 0:00:16.9]} 19. Bxf6 {[%clk 0:01:56.9]} 19... Qe3+
{[%clk 0:00:17.4]} 20. Qxe3 {[%clk 0:01:55.1]} 20... Rxe3 {[%clk 0:00:18.3]} 21.
Bxg7 {[%clk 0:01:38.1]} 21... Re2 {[%clk 0:00:18.6]} 22. Bxh6 {[%clk 0:01:38]}
22... Nd5 {[%clk 0:00:02.4]} 23. Nf5 {[%clk 0:01:36.1]} 23... b5 {[%clk
0:00:01.7]} 24. Ng3 {[%clk 0:01:27.5]} 24... Re6 {[%clk 0:00:01.5]} 25. Bf4
{[%clk 0:01:26.3]} 1-0

[Event "Early-Titled-Tuesday-Blitz-January-16-2024"]
[Site "Chess.com"]
[Date "2024.01.16"]
[Round "5"]
[White "LeoWin2012"]
[Black "Statham_01"]
[Result "0-1"]
[WhiteElo "2243"]
[BlackElo "2544"]
[TimeControl "180+1"]
[EndTime "8:56:49 PST"]
[Termination "Statham_01 won by checkmate"]

1. e4 {[%clk 0:02:40.6]} 1... e6 {[%clk 0:02:55.8]} 2. d4 {[%clk 0:02:40.1]}
2... d5 {[%clk 0:02:55.9]} 3. Nc3 {[%clk 0:02:39.6]} 3... Nf6 {[%clk 0:02:56.5]}
4. e5 {[%clk 0:02:39.3]} 4... Nfd7 {[%clk 0:02:57.1]} 5. f4 {[%clk 0:02:40]}
5... c5 {[%clk 0:02:57.8]} 6. Nf3 {[%clk 0:02:40]} 6... Nc6 {[%clk 0:02:58.5]}
7. Be3 {[%clk 0:02:39.6]} 7... Be7 {[%clk 0:02:59.2]} 8. Qd2 {[%clk 0:02:39.4]}
8... O-O {[%clk 0:02:59.6]} 9. h4 {[%clk 0:02:31.2]} 9... f6 {[%clk 0:02:58.4]}
10. O-O-O {[%clk 0:02:28.7]} 10... c4 {[%clk 0:02:56.5]} 11. Be2 {[%clk
0:02:25.3]} 11... b5 {[%clk 0:02:55.2]} 12. g4 {[%clk 0:02:23.9]} 12... b4
{[%clk 0:02:52.6]} 13. Nb1 {[%clk 0:02:23.9]} 13... Qa5 {[%clk 0:02:49.3]} 14.
f5 {[%clk 0:02:08.9]} 14... Qxa2 {[%clk 0:02:34]} 15. fxe6 {[%clk 0:02:08.1]}
15... Nb6 {[%clk 0:02:09.5]} 16. exf6 {[%clk 0:02:07.7]} 16... Na4 {[%clk
0:01:50.8]} 17. c3 {[%clk 0:01:58.9]} 17... Na5 {[%clk 0:01:51]} 18. Rdf1 {[%clk
0:00:57.7]} 18... Nb3+ {[%clk 0:01:46.2]} 19. Kd1 {[%clk 0:00:57.8]} 19... Qxb1+
{[%clk 0:01:44.4]} 20. Qc1 {[%clk 0:00:58.2]} 20... Nxb2+ {[%clk 0:01:43.6]} 21.
Ke1 {[%clk 0:00:57.9]} 21... Nxc1 {[%clk 0:01:43.8]} 22. fxe7 {[%clk 0:00:57.8]}
22... Nxe2+ {[%clk 0:01:15.7]} 23. Kxe2 {[%clk 0:00:57.8]} 23... Qd3+ {[%clk
0:01:14.9]} 24. Kf2 {[%clk 0:00:58.1]} 24... Rxf3+ {[%clk 0:01:10.2]} 25. Kxf3
{[%clk 0:00:58.2]} 25... Bxe6 {[%clk 0:01:10.6]} 26. Re1 {[%clk 0:00:57.1]}
26... Qe4+ {[%clk 0:01:09.8]} 27. Kf2 {[%clk 0:00:56.6]} 27... Nd3+ {[%clk
0:01:10.2]} 28. Kg3 {[%clk 0:00:56.7]} 28... Qxg4+ {[%clk 0:01:10.5]} 29. Kh2
{[%clk 0:00:55]} 29... Qh3+ {[%clk 0:01:04.6]} 30. Kg1 {[%clk 0:00:55.8]} 30...
Qg3+ {[%clk 0:01:05]} 31. Kf1 {[%clk 0:00:55.5]} 31... Qxe1+ {[%clk 0:01:05.3]}
32. Kg2 {[%clk 0:00:55.5]} 32... Qe2+ {[%clk 0:01:05.5]} 33. Kg1 {[%clk
0:00:55.5]} 33... Qxe3+ {[%clk 0:01:05.6]} 34. Kg2 {[%clk 0:00:56.2]} 34... Bh3+
{[%clk 0:01:05.4]} 35. Rxh3 {[%clk 0:00:56]} 35... Nf4+ {[%clk 0:01:06.1]} 36.
Kh1 {[%clk 0:00:54.5]} 36... Qxh3+ {[%clk 0:01:07]} 37. Kg1 {[%clk 0:00:54.9]}
37... Qg2# {[%clk 0:01:07.7]} 0-1

[Event "Early-Titled-Tuesday-Blitz-January-16-2024"]
[Site "Chess.com"]
[Date "2024.01.16"]
[Round "5"]
[White "djano"]
[Black "Yurasova_Daria"]
[Result "1-0"]
[WhiteElo "2635"]
[BlackElo "2460"]
[TimeControl "180+1"]
[EndTime "8:56:56 PST"]
[Termination "djano won by resignation"]

1. e4 {[%clk 0:03:00.9]} 1... e5 {[%clk 0:02:56.8]} 2. Nf3 {[%clk 0:02:58.1]}
2... Nc6 {[%clk 0:02:57.2]} 3. d4 {[%clk 0:02:57.3]} 3... exd4 {[%clk
0:02:56.2]} 4. Nxd4 {[%clk 0:02:58.2]} 4... Nf6 {[%clk 0:02:56.6]} 5. Nxc6
{[%clk 0:02:57.3]} 5... bxc6 {[%clk 0:02:56.7]} 6. e5 {[%clk 0:02:57.2]} 6...
Qe7 {[%clk 0:02:56.9]} 7. Qe2 {[%clk 0:02:57.4]} 7... Nd5 {[%clk 0:02:55.3]} 8.
c4 {[%clk 0:02:57.7]} 8... Ba6 {[%clk 0:02:55.5]} 9. h4 {[%clk 0:02:57.8]} 9...
Nb6 {[%clk 0:02:47.3]} 10. b3 {[%clk 0:02:50.6]} 10... f6 {[%clk 0:02:45.2]} 11.
Rh3 {[%clk 0:02:41.2]} 11... O-O-O {[%clk 0:02:39.6]} 12. Bb2 {[%clk 0:02:34.3]}
12... fxe5 {[%clk 0:02:38.6]} 13. Nc3 {[%clk 0:02:29.5]} 13... d6 {[%clk
0:02:36]} 14. O-O-O {[%clk 0:02:27.9]} 14... Kb8 {[%clk 0:02:35.7]} 15. Rhd3
{[%clk 0:02:15.9]} 15... g6 {[%clk 0:02:31.7]} 16. g3 {[%clk 0:02:11.8]} 16...
Bh6+ {[%clk 0:02:31.5]} 17. Kb1 {[%clk 0:02:12.2]} 17... Rhf8 {[%clk 0:02:27]}
18. Bg2 {[%clk 0:02:11.4]} 18... Qf7 {[%clk 0:02:16.2]} 19. Ne4 {[%clk
0:02:01.1]} 19... c5 {[%clk 0:02:04.4]} 20. Nxc5 {[%clk 0:01:52.8]} 20... Bc8
{[%clk 0:02:00.3]} 21. Ne4 {[%clk 0:01:50.5]} 21... Nd7 {[%clk 0:01:56.3]} 22.
c5 {[%clk 0:01:42.6]} 22... dxc5 {[%clk 0:01:37.3]} 23. Nxc5 {[%clk 0:01:29.8]}
23... Qxf2 {[%clk 0:01:06.7]} 24. Qe4 {[%clk 0:01:14.9]} 24... Nb6 {[%clk
0:00:50.6]} 25. Rxd8 {[%clk 0:00:56.4]} 25... Rxd8 {[%clk 0:00:49.3]} 26. Na6+
{[%clk 0:00:42.7]} 1-0

[Event "Early-Titled-Tuesday-Blitz-January-16-2024"]
[Site "Chess.com"]
[Date "2024.01.16"]
[Round "5"]
[White "mertfelin"]
[Black "shirovin"]
[Result "1-0"]
[WhiteElo "2230"]
[BlackElo "1979"]
[TimeControl "180+1"]
[EndTime "8:57:00 PST"]
[Termination "mertfelin won by resignation"]

1. e4 {[%clk 0:02:57.5]} 1... c5 {[%clk 0:03:00.3]} 2. Nf3 {[%clk 0:02:54.4]}
2... d6 {[%clk 0:03:00.2]} 3. Bb5+ {[%clk 0:02:54.8]} 3... Nd7 {[%clk
0:02:59.1]} 4. c4 {[%clk 0:02:55.2]} 4... a6 {[%clk 0:02:49.8]} 5. Ba4 {[%clk
0:02:55.3]} 5... e6 {[%clk 0:02:36.8]} 6. Nc3 {[%clk 0:02:52.6]} 6... Nf6 {[%clk
0:02:35.9]} 7. h3 {[%clk 0:02:47.9]} 7... Be7 {[%clk 0:02:35.9]} 8. d3 {[%clk
0:02:48.3]} 8... O-O {[%clk 0:02:35.5]} 9. Be3 {[%clk 0:02:47.9]} 9... b6 {[%clk
0:02:29.4]} 10. Rb1 {[%clk 0:02:44.9]} 10... Bb7 {[%clk 0:02:28]} 11. O-O {[%clk
0:02:44.7]} 11... Qc7 {[%clk 0:02:25.8]} 12. a3 {[%clk 0:02:23.1]} 12... d5
{[%clk 0:02:20.6]} 13. exd5 {[%clk 0:02:19.7]} 13... exd5 {[%clk 0:02:16.7]} 14.
cxd5 {[%clk 0:02:19.9]} 14... Bxd5 {[%clk 0:02:00.6]} 15. Nxd5 {[%clk
0:02:19.1]} 15... Nxd5 {[%clk 0:01:58.7]} 16. Bd2 {[%clk 0:02:16.7]} 16... b5
{[%clk 0:01:54.9]} 17. Bb3 {[%clk 0:02:12.7]} 17... N7f6 {[%clk 0:01:51.3]} 18.
Re1 {[%clk 0:02:11.9]} 18... Rad8 {[%clk 0:01:47.1]} 19. Rc1 {[%clk 0:02:03.2]}
19... Rfe8 {[%clk 0:01:42.8]} 20. Qc2 {[%clk 0:02:01.3]} 20... Nf4 {[%clk
0:01:36.7]} 21. Ne5 {[%clk 0:01:52.8]} 21... N6d5 {[%clk 0:01:12.4]} 22. Bxf4
{[%clk 0:01:31.7]} 22... Nxf4 {[%clk 0:01:07.6]} 23. Bxf7+ {[%clk 0:01:31.8]}
23... Kf8 {[%clk 0:00:57.6]} 24. Bxe8 {[%clk 0:01:32.2]} 24... Rxe8 {[%clk
0:00:47.7]} 25. d4 {[%clk 0:01:25.8]} 25... Qb7 {[%clk 0:00:38.4]} 26. Qf5+
{[%clk 0:01:24.2]} 26... Bf6 {[%clk 0:00:17.8]} 27. Qxf4 {[%clk 0:01:24.5]}
27... cxd4 {[%clk 0:00:17.3]} 28. Qxd4 {[%clk 0:01:14.2]} 28... Qc7 {[%clk
0:00:15]} 29. Rxc7 {[%clk 0:01:13.6]} 1-0

[Event "Early-Titled-Tuesday-Blitz-January-16-2024"]
[Site "Chess.com"]
[Date "2024.01.16"]
[Round "5"]
[White "semchik73"]
[Black "iturrizaga"]
[Result "0-1"]
[WhiteElo "2417"]
[BlackElo "3035"]
[TimeControl "180+1"]
[EndTime "8:57:03 PST"]
[Termination "iturrizaga won by checkmate"]

1. Nf3 {[%clk 0:03:00.3]} 1... Nf6 {[%clk 0:02:59.8]} 2. c4 {[%clk 0:03:00.2]}
2... g6 {[%clk 0:02:59.8]} 3. d4 {[%clk 0:03:00]} 3... c5 {[%clk 0:03:00]} 4. e3
{[%clk 0:02:59.2]} 4... cxd4 {[%clk 0:02:59.8]} 5. exd4 {[%clk 0:02:59.1]} 5...
d5 {[%clk 0:03:00.5]} 6. Nc3 {[%clk 0:02:59.4]} 6... Bg7 {[%clk 0:03:01.1]} 7.
c5 {[%clk 0:02:59.9]} 7... O-O {[%clk 0:03:00.9]} 8. Be2 {[%clk 0:03:00.3]} 8...
Nc6 {[%clk 0:03:01.4]} 9. O-O {[%clk 0:03:00.5]} 9... Ne4 {[%clk 0:03:01.9]} 10.
Be3 {[%clk 0:02:58.6]} 10... e6 {[%clk 0:03:02.4]} 11. Qb3 {[%clk 0:02:42]}
11... Bd7 {[%clk 0:02:55.7]} 12. Rfd1 {[%clk 0:02:39.3]} 12... f5 {[%clk
0:02:38.1]} 13. Rac1 {[%clk 0:01:45.8]} 13... h6 {[%clk 0:02:22.1]} 14. Nxe4
{[%clk 0:01:38.7]} 14... fxe4 {[%clk 0:02:19.8]} 15. Ne5 {[%clk 0:01:39]} 15...
Nxe5 {[%clk 0:02:15.4]} 16. dxe5 {[%clk 0:01:39.3]} 16... Bc6 {[%clk 0:02:13.6]}
17. f3 {[%clk 0:01:27]} 17... Bxe5 {[%clk 0:02:09.2]} 18. fxe4 {[%clk
0:01:09.1]} 18... Qh4 {[%clk 0:02:06.2]} 19. Bf3 {[%clk 0:00:41.4]} 19... Qxh2+
{[%clk 0:01:48.4]} 20. Kf1 {[%clk 0:00:40.9]} 20... Rxf3+ {[%clk 0:01:45.4]} 21.
gxf3 {[%clk 0:00:41]} 21... Rf8 {[%clk 0:01:44.1]} 22. Bf2 {[%clk 0:00:35.7]}
22... Bb5+ {[%clk 0:01:30]} 23. Ke1 {[%clk 0:00:23.6]} 23... Bg3 {[%clk
0:01:02.6]} 24. Bxg3 {[%clk 0:00:15.6]} 24... Qe2# {[%clk 0:01:01.8]} 0-1

[Event "Early-Titled-Tuesday-Blitz-January-16-2024"]
[Site "Chess.com"]
[Date "2024.01.16"]
[Round "5"]
[White "DraningWaterHi"]
[Black "Mikhail_Golubev"]
[Result "1-0"]
[WhiteElo "2174"]
[BlackElo "2526"]
[TimeControl "180+1"]
[EndTime "8:57:03 PST"]
[Termination "DraningWaterHi won on time"]

1. d4 {[%clk 0:03:00.9]} 1... Nf6 {[%clk 0:02:59.1]} 2. Bf4 {[%clk 0:02:59.3]}
2... d6 {[%clk 0:02:58.3]} 3. e3 {[%clk 0:02:57.9]} 3... Nbd7 {[%clk 0:02:57.3]}
4. Nf3 {[%clk 0:02:58.1]} 4... Nh5 {[%clk 0:02:55.1]} 5. Bg5 {[%clk 0:02:57.9]}
5... h6 {[%clk 0:02:53.9]} 6. Bh4 {[%clk 0:02:57.6]} 6... g5 {[%clk 0:02:53.7]}
7. Bg3 {[%clk 0:02:57.3]} 7... Bg7 {[%clk 0:02:43.4]} 8. c4 {[%clk 0:02:49.9]}
8... c5 {[%clk 0:02:20.6]} 9. Nc3 {[%clk 0:02:39.7]} 9... g4 {[%clk 0:01:30.6]}
10. Nh4 {[%clk 0:02:36.2]} 10... cxd4 {[%clk 0:01:30.4]} 11. exd4 {[%clk
0:02:35.9]} 11... Qb6 {[%clk 0:01:28]} 12. Nd5 {[%clk 0:02:33.3]} 12... Qa5+
{[%clk 0:01:12.2]} 13. b4 {[%clk 0:02:30.9]} 13... Qd8 {[%clk 0:01:11.2]} 14.
Qxg4 {[%clk 0:02:24.9]} 14... Ne5 {[%clk 0:00:32.8]} 15. Qxh5 {[%clk 0:02:17.6]}
15... Bg4 {[%clk 0:00:31.5]} 16. Nf5 {[%clk 0:02:11.1]} 16... Bxh5 {[%clk
0:00:29.6]} 17. Nxg7+ {[%clk 0:02:10.9]} 17... Kf8 {[%clk 0:00:29.6]} 18. Nxh5
{[%clk 0:02:11.8]} 18... Nc6 {[%clk 0:00:23.3]} 19. Rd1 {[%clk 0:02:06.2]} 19...
e6 {[%clk 0:00:20.6]} 20. Ne3 {[%clk 0:01:57.9]} 20... Rg8 {[%clk 0:00:19.6]}
21. c5 {[%clk 0:01:56]} 21... dxc5 {[%clk 0:00:13.5]} 22. dxc5 {[%clk
0:01:52.5]} 22... Qg5 {[%clk 0:00:13.4]} 23. Bd6+ {[%clk 0:01:51.8]} 23... Ke8
{[%clk 0:00:13.3]} 24. Be2 {[%clk 0:01:46.3]} 24... Rd8 {[%clk 0:00:11.1]} 25.
h4 {[%clk 0:01:44.4]} 25... Qg6 {[%clk 0:00:09.6]} 26. Ng4 {[%clk 0:01:42]}
26... Rxd6 {[%clk 0:00:02.4]} 27. cxd6 {[%clk 0:01:37.5]} 27... Kd8 {[%clk
0:00:02.3]} 28. Nhf6 {[%clk 0:01:34.4]} 28... Rh8 {[%clk 0:00:02.9]} 29. h5
{[%clk 0:01:34.8]} 29... Qg5 {[%clk 0:00:02.7]} 30. O-O {[%clk 0:01:33.1]} 30...
Ne5 {[%clk 0:00:03]} 31. f4 {[%clk 0:01:26.4]} 1-0

[Event "Early-Titled-Tuesday-Blitz-January-16-2024"]
[Site "Chess.com"]
[Date "2024.01.16"]
[Round "5"]
[White "alekroth65"]
[Black "pfalcon1949"]
[Result "1-0"]
[WhiteElo "2361"]
[BlackElo "1976"]
[TimeControl "180+1"]
[EndTime "8:57:09 PST"]
[Termination "alekroth65 won on time"]

1. d4 {[%clk 0:03:00.9]} 1... Nf6 {[%clk 0:02:58.7]} 2. c4 {[%clk 0:03:01.1]}
2... e6 {[%clk 0:02:58.8]} 3. Nf3 {[%clk 0:03:01]} 3... d5 {[%clk 0:02:58.4]} 4.
Bg5 {[%clk 0:02:58.4]} 4... Be7 {[%clk 0:02:57.1]} 5. e3 {[%clk 0:02:57.5]} 5...
h6 {[%clk 0:02:57.4]} 6. Bxf6 {[%clk 0:02:56.3]} 6... Bxf6 {[%clk 0:02:56.9]} 7.
Nc3 {[%clk 0:02:56.6]} 7... b6 {[%clk 0:02:54.5]} 8. Qc2 {[%clk 0:02:36.6]} 8...
Bb7 {[%clk 0:02:42.9]} 9. cxd5 {[%clk 0:02:36.4]} 9... exd5 {[%clk 0:02:38.8]}
10. Bb5+ {[%clk 0:02:35.6]} 10... c6 {[%clk 0:02:36.9]} 11. Bd3 {[%clk
0:02:31.6]} 11... Nd7 {[%clk 0:02:31.9]} 12. e4 {[%clk 0:02:24.9]} 12... dxe4
{[%clk 0:02:24.4]} 13. Nxe4 {[%clk 0:02:25.8]} 13... O-O {[%clk 0:02:22.3]} 14.
O-O {[%clk 0:02:21.8]} 14... Be7 {[%clk 0:02:16.5]} 15. Rad1 {[%clk 0:02:06.8]}
15... Qc7 {[%clk 0:02:11.2]} 16. d5 {[%clk 0:01:55.1]} 16... c5 {[%clk
0:01:34.9]} 17. d6 {[%clk 0:01:54.6]} 17... Bxd6 {[%clk 0:01:00.1]} 18. Nxd6
{[%clk 0:01:55.5]} 18... Bxf3 {[%clk 0:00:59.2]} 19. gxf3 {[%clk 0:01:53.1]}
19... Ne5 {[%clk 0:00:56.5]} 20. Be4 {[%clk 0:01:51.7]} 20... Rad8 {[%clk
0:00:44.7]} 21. Nf5 {[%clk 0:01:49.2]} 21... Ng6 {[%clk 0:00:19.8]} 22. Ng3
{[%clk 0:01:35]} 22... Nf4 {[%clk 0:00:15.2]} 23. Rxd8 {[%clk 0:01:31.8]} 23...
Qxd8 {[%clk 0:00:13.8]} 24. Rd1 {[%clk 0:01:28.6]} 24... Qh4 {[%clk 0:00:13.3]}
25. Qc4 {[%clk 0:01:19.3]} 25... Nh3+ {[%clk 0:00:02.9]} 26. Kg2 {[%clk
0:01:13.2]} 26... Nf4+ {[%clk 0:00:02.7]} 27. Kh1 {[%clk 0:01:13.1]} 1-0

[Event "Early-Titled-Tuesday-Blitz-January-16-2024"]
[Site "Chess.com"]
[Date "2024.01.16"]
[Round "5"]
[White "Nf3c5"]
[Black "GMRAVEN_ON_YOUTUBE"]
[Result "0-1"]
[WhiteElo "2562"]
[BlackElo "2824"]
[TimeControl "180+1"]
[EndTime "8:57:11 PST"]
[Termination "GMRAVEN_ON_YOUTUBE won on time"]

1. d4 {[%clk 0:03:00.9]} 1... f5 {[%clk 0:02:59.9]} 2. e4 {[%clk 0:02:56.2]}
2... fxe4 {[%clk 0:02:59]} 3. Nc3 {[%clk 0:02:56.6]} 3... Nf6 {[%clk 0:02:59.5]}
4. f3 {[%clk 0:02:56]} 4... d5 {[%clk 0:02:58.9]} 5. Bg5 {[%clk 0:02:56.5]} 5...
Bf5 {[%clk 0:02:55.6]} 6. Bxf6 {[%clk 0:02:40.7]} 6... exf6 {[%clk 0:02:45.9]}
7. fxe4 {[%clk 0:02:40]} 7... dxe4 {[%clk 0:02:45]} 8. Bc4 {[%clk 0:02:33.5]}
8... Nc6 {[%clk 0:02:42.3]} 9. Nge2 {[%clk 0:02:31.6]} 9... Na5 {[%clk
0:02:42.1]} 10. Bb5+ {[%clk 0:02:18.2]} 10... c6 {[%clk 0:02:41.6]} 11. Ba4
{[%clk 0:02:18.4]} 11... b5 {[%clk 0:02:41.9]} 12. Bb3 {[%clk 0:02:18.4]} 12...
Nxb3 {[%clk 0:02:34.7]} 13. axb3 {[%clk 0:02:17.9]} 13... Bd6 {[%clk 0:02:34.5]}
14. O-O {[%clk 0:02:16.8]} 14... Bg6 {[%clk 0:02:33.4]} 15. Nf4 {[%clk
0:01:54.2]} 15... Bxf4 {[%clk 0:02:28.9]} 16. Rxf4 {[%clk 0:01:52.7]} 16... Qd6
{[%clk 0:02:08.9]} 17. Qd2 {[%clk 0:01:47.2]} 17... f5 {[%clk 0:02:06.1]} 18. g4
{[%clk 0:01:42.3]} 18... O-O {[%clk 0:02:03.2]} 19. gxf5 {[%clk 0:01:08.7]}
19... Rxf5 {[%clk 0:02:03]} 20. Rxe4 {[%clk 0:00:59.6]} 20... Raf8 {[%clk
0:01:59.4]} 21. Re2 {[%clk 0:00:33.6]} 21... Rf4 {[%clk 0:01:54.9]} 22. d5
{[%clk 0:00:20.7]} 22... b4 {[%clk 0:01:52.7]} 23. Na4 {[%clk 0:00:19.2]} 23...
Rg4+ {[%clk 0:01:51.4]} 24. Rg2 {[%clk 0:00:19]} 24... Rxg2+ {[%clk 0:01:42.5]}
25. Qxg2 {[%clk 0:00:18.6]} 25... cxd5 {[%clk 0:01:43]} 26. Rd1 {[%clk 0:00:17]}
26... Rf5 {[%clk 0:01:27.3]} 27. Rd4 {[%clk 0:00:15.3]} 27... Qe5 {[%clk
0:01:25.9]} 28. Qd2 {[%clk 0:00:14.6]} 28... Rg5+ {[%clk 0:01:24.3]} 29. Kf1
{[%clk 0:00:08.9]} 29... Be4 {[%clk 0:01:24.4]} 30. Qxb4 {[%clk 0:00:06.1]}
30... Qf4+ {[%clk 0:01:22.6]} 0-1

[Event "Early-Titled-Tuesday-Blitz-January-16-2024"]
[Site "Chess.com"]
[Date "2024.01.16"]
[Round "5"]
[White "KorolDimitriy75"]
[Black "LeninGuerra"]
[Result "1-0"]
[WhiteElo "2357"]
[BlackElo "2646"]
[TimeControl "180+1"]
[EndTime "8:57:25 PST"]
[Termination "KorolDimitriy75 won by checkmate"]

1. d4 {[%clk 0:03:00.9]} 1... Nf6 {[%clk 0:02:59.5]} 2. c4 {[%clk 0:03:00.7]}
2... c5 {[%clk 0:02:59.6]} 3. d5 {[%clk 0:03:00.5]} 3... b5 {[%clk 0:03:00.2]}
4. Nd2 {[%clk 0:03:00.6]} 4... bxc4 {[%clk 0:03:00.1]} 5. e4 {[%clk 0:03:00.7]}
5... d6 {[%clk 0:03:00.2]} 6. Bxc4 {[%clk 0:03:00.8]} 6... Nbd7 {[%clk
0:03:00.7]} 7. b3 {[%clk 0:02:58.3]} 7... g6 {[%clk 0:03:01.2]} 8. Bb2 {[%clk
0:02:58.1]} 8... Bg7 {[%clk 0:03:01.7]} 9. Ngf3 {[%clk 0:02:58.2]} 9... O-O
{[%clk 0:03:02.3]} 10. O-O {[%clk 0:02:57.6]} 10... Nb6 {[%clk 0:03:02.2]} 11.
h3 {[%clk 0:02:57.3]} 11... Nfd7 {[%clk 0:03:02]} 12. Bxg7 {[%clk 0:02:48.7]}
12... Kxg7 {[%clk 0:03:01.5]} 13. Re1 {[%clk 0:02:48.3]} 13... a5 {[%clk
0:03:00]} 14. e5 {[%clk 0:02:36]} 14... Nxe5 {[%clk 0:02:56.4]} 15. Nxe5 {[%clk
0:02:35.7]} 15... dxe5 {[%clk 0:02:57.3]} 16. Rxe5 {[%clk 0:02:34]} 16... Ba6
{[%clk 0:02:57.8]} 17. Qe2 {[%clk 0:02:24.2]} 17... Bxc4 {[%clk 0:02:57.3]} 18.
bxc4 {[%clk 0:02:21.5]} 18... Ra7 {[%clk 0:02:56.5]} 19. Re1 {[%clk 0:02:19.1]}
19... Nc8 {[%clk 0:02:56.5]} 20. Qe3 {[%clk 0:01:47.4]} 20... Rc7 {[%clk
0:02:48]} 21. Qc3 {[%clk 0:01:40.5]} 21... Kg8 {[%clk 0:02:42.5]} 22. Qxa5
{[%clk 0:01:39.6]} 22... Nd6 {[%clk 0:02:41.2]} 23. Qc3 {[%clk 0:00:59.8]} 23...
Re8 {[%clk 0:02:39.2]} 24. g4 {[%clk 0:00:49]} 24... Qa8 {[%clk 0:02:39.2]} 25.
Ne4 {[%clk 0:00:34.6]} 25... Nxe4 {[%clk 0:02:33.1]} 26. R1xe4 {[%clk 0:00:28]}
26... Ra7 {[%clk 0:02:33.4]} 27. Qe3 {[%clk 0:00:22.3]} 27... Rxa2 {[%clk
0:02:31.7]} 28. Rxe7 {[%clk 0:00:18.7]} 28... Rxe7 {[%clk 0:02:28.2]} 29. Rxe7
{[%clk 0:00:19.6]} 29... Qa4 {[%clk 0:02:22.3]} 30. Re8+ {[%clk 0:00:16.9]}
30... Kg7 {[%clk 0:02:22.3]} 31. Qe5+ {[%clk 0:00:15.1]} 31... Kh6 {[%clk
0:02:22.5]} 32. Qf4+ {[%clk 0:00:05]} 32... Kg7 {[%clk 0:02:21.8]} 33. Qe5+
{[%clk 0:00:04.2]} 33... Kh6 {[%clk 0:02:18.7]} 34. Qf4+ {[%clk 0:00:04.4]}
34... Kg7 {[%clk 0:02:18.8]} 35. Re7 {[%clk 0:00:04.8]} 35... Qd1+ {[%clk
0:02:00.1]} 36. Kg2 {[%clk 0:00:04.5]} 36... Ra8 {[%clk 0:01:49.2]} 37. Qxf7+
{[%clk 0:00:03.6]} 37... Kh6 {[%clk 0:01:49.4]} 38. Qxh7+ {[%clk 0:00:02.5]}
38... Kg5 {[%clk 0:01:49.3]} 39. Qf7 {[%clk 0:00:02.1]} 39... Qd4 {[%clk
0:01:46.6]} 40. Re6 {[%clk 0:00:02.1]} 40... Qd3 {[%clk 0:01:38.2]} 41. Qe7+
{[%clk 0:00:01.8]} 41... Kh6 {[%clk 0:01:38]} 42. Qh4+ {[%clk 0:00:01.9]} 42...
Kg7 {[%clk 0:01:37.9]} 43. Re7+ {[%clk 0:00:02.1]} 43... Kg8 {[%clk 0:01:37.8]}
44. Qh7+ {[%clk 0:00:01.9]} 44... Kf8 {[%clk 0:01:38.5]} 45. Qf7# {[%clk
0:00:02.3]} 1-0